Cogmind - Beta 14 @@@ ROGUE MODE // 2025.03.17 @ 17:55:34 Player: GiggleBox Result: Destroyed by D-53 Grenadier with Mini Grenade Launcher Performance ------------- Evolutions (1) 500 Regions Visited (4) 800 Robots Destroyed (38) 190 Value Destroyed (943) 943 Prototype IDs (3) 60 Alien Tech Used (0) 0 Bonus (0) 0 TOTAL SCORE: 2493 Bonus ------- None Cogmind --------- Core Integrity 0/400 Matter 254/300 Energy 100/100 System Corruption 4% Temperature Cool (0) Movement Core (200) Ox3 Location -9/Mines Parts ------- > --- POWER (1) -------- (None) > --- PROPULSION (3) --- (None) > --- UTILITY (3) ------ Disposable Heat Sink Medium Storage Unit > --- WEAPON (2) ------- (None) > --- INVENTORY (10) --- Heavy Flail Peak State ------------ > --- POWER ------------ Heavy Ion Engine > --- PROPULSION ------- Light Treads Light Treads Light Treads > --- UTILITY ---------- Improved Heat Sink Small Storage Unit Large Matter Pod > --- WEAPON ----------- Improved Assault Rifle Improved Assault Rifle > --- INVENTORY -------- Improved Ion Engine Wheel Disposable Heat Sink Advanced Beam Cannon Improved Assault Rifle Rocket Launcher [Rating: 18] Favorites ----------- Power Ion Engine Engine Ion Engine Propulsion Light Treads Treads Light Treads Wheel Wheel Utility Small Storage Unit Device Seismic Detector Storage Small Storage Unit Weapon Medium Laser Energy Gun Medium Laser Energy Cannon Advanced Beam Cannon Ballistic Gun Improved Assault Rifle Ballistic Cannon Light Cannon Launcher Rocket Launcher Build | -11 -10 -10 -9 -9 ------- Run | Yrd Mat Min Mat Min Slots Evolved 2 | . . . 2 . Power . | . . . . . Propulsion 1 | . . . 1 . Utility 1 | . . . 1 . Weapon . | . . . . . Parts Attached 56 | 11 10 3 21 11 Power 5 | 1 1 . 1 2 Engine 5 | 1 1 . 1 2 Core . | . . . . . Reactor . | . . . . . Propulsion 17 | 2 2 2 9 2 Treads 11 | . 2 . 8 1 Leg . | . . . . . Wheel 6 | 2 . 2 1 1 Hover . | . . . . . Flight . | . . . . . Utility 6 | 2 . . 3 1 Device 3 | 1 . . 1 1 Storage 3 | 1 . . 2 . Processor . | . . . . . Hackware . | . . . . . Protection . | . . . . . Artifact . | . . . . . Weapon 28 | 6 7 1 8 6 Energy Gun 10 | 3 5 . 1 1 Energy Cannon 1 | . . . 1 . Ballistic Gun 11 | 3 . . 5 3 Ballistic Cannon 3 | . 1 1 1 . Launcher 3 | . 1 . . 2 Special Weapon . | . . . . . Impact Weapon . | . . . . . Slashing Weapon . | . . . . . Piercing Weapon . | . . . . . Special Melee Weapon . | . . . . . Unidentified Prototypes 2 | . . . 2 . Parts Lost 25 | . 4 . 7 14 Power 4 | . 1 . 1 2 Propulsion 10 | . 2 . 3 5 Utility 3 | . . . 1 2 Weapon 8 | . 1 . 2 5 Highest Loss Streak 15 | . 4 . 3 15 To Critical Strikes . | . . . . . Average Slot Usage (%) 96 | . 99 100 95 77 Engine 12 | . 14 14 11 11 Treads 19 | . 17 4 24 17 Wheel 9 | . 10 23 6 2 Device 14 | . 14 14 15 8 Storage 14 | . 14 14 14 17 Energy Gun 10 | . 16 14 5 2 Ballistic Gun 6 | . . . 11 11 Ballistic Cannon 7 | . 10 14 4 . Peak Build Rating 18 | 7 8 8 18 17 Average Rating 10 | 5 7 7 15 12 On Entrance 7 | . 7 8 8 15 Naked Turns . | . . . . . Heaviest Build 28 | 14 16 16 28 28 Greatest Support 60 | 20 40 40 60 60 Greatest Overweight (x) 1 | . 1 1 1 1 Average Overweight (x) . | . . . . . Largest Inventory Capacity 10 | 8 8 8 10 10 Average Capacity 8 | 7 8 8 8 10 Most Carried 9 | 5 8 8 9 8 Average Carried 6 | 3 6 7 7 5 Final Capacity 10 | 8 8 8 10 10 Final Carried 9 | 5 8 8 9 1 Class Distribution -------------------- 82% | Mutant 17% | Scavenger-Mutant Dominant Class ---------------- Mutant | -10/Materials Mutant | -10/Mines Mutant | -9/Materials Mutant | -9/Mines Resources | -11 -10 -10 -9 -9 ----------- Run | Yrd Mat Min Mat Min Matter Collected 1178 | 316 167 15 679 1 Remotely . | . . . . . Salvage Created 1328 | 100 194 15 944 75 Parts 91 | 5 12 5 69 . Haulers Intercepted 1 | . . . 1 . Recyclers Shooed 1 | . . . 1 . Parts Field Recycled . | . . . . . Retrieved Matter . | . . . . . Parts Self-Destructed . | . . . . . Prevented . | . . . . . Kills | -11 -10 -10 -9 -9 ------- Run | Yrd Mat Min Mat Min Combat Hostiles Destroyed 43 | . 5 . 22 16 Guns 15 | . . . 15 . Cannons 9 | . 2 . 7 . AOE 19 | . 3 . . 16 Classes Destroyed 12 | 2 4 . 5 1 Worker 1 | . . . 1 . Builder 1 | . 1 . . . Tunneler 2 | 1 . 1 . . Hauler 1 | . . . 1 . Recycler 3 | 1 1 . 1 . Operator 1 | . 1 . . . Watcher 2 | . . . 2 . Swarmer 6 | . 2 . 4 . Grunt 15 | . 3 . 12 . Duelist 1 | . . . 1 . Sentry 5 | . . . 5 . Assembled 16 | . . . . 16 Best Kill Streak 16 | 1 5 1 5 16 Combat Bots Only 16 | . 4 . 5 16 Max Kills in Single Turn 6 | 1 3 1 1 6 Gunslinging . | . . . . . Exploded 6 | . 2 . . 6 Melee . | . . . . . Uniques/NPCs Destroyed . | . . . . . Combat | -11 -10 -10 -9 -9 -------- Run | Yrd Mat Min Mat Min Hostile Shots Fired 238 | . 54 . 131 53 Missed 66 | . 13 . 39 14 Damage Taken 2807 | . 452 . 1146 1209 Core 443 | . 39 . 193 211 Absorbed by Shields . | . . . . . Core Remaining (%) 92 | 100 . 84 . . Volleys Fired 116 | 10 24 2 70 10 Largest 2 | 2 2 2 2 2 Hottest 95 | 90 85 85 95 56 Shots Fired 209 | 20 40 4 130 15 Gun 147 | 20 15 2 103 7 Cannon 53 | . 24 2 27 . Launcher 9 | . 1 . . 8 Special . | . . . . . Kinetic 126 | 6 24 2 88 6 Thermal 56 | 10 10 2 33 1 Explosive 9 | . 1 . . 8 Electromagnetic 18 | 4 5 . 9 . Robot Hit Streak 13 | 7 6 3 13 4 Robot Miss Streak 5 | 1 5 . 3 2 Penetration Max . | . . . . . Secondary Targets 3 | . . . 3 . Max Gunslinging Chain 1 | . . . 1 . Shots Hit Robots 147 | 15 19 3 102 8 Core Hits 104 | 4 17 1 44 38 Critical Kills . | . . . . . Critical Parts Destroyed . | . . . . . Critical Strikes 5 | . 1 . 4 . Burn 4 | . 1 . 3 . Blast 1 | . . . 1 . Melee Attacks . | . . . . . Impact . | . . . . . Slashing . | . . . . . Piercing . | . . . . . Sneak Attacks . | . . . . . Combat Hostiles . | . . . . . Follow-up Attacks . | . . . . . Damage Inflicted 3324 | 171 462 48 1520 1123 Guns 1412 | 171 89 12 1088 52 Cannons 666 | . 205 36 425 . Explosions 1239 | . 168 . . 1071 Melee . | . . . . . Ramming 7 | . . . 7 . Kinetic 1448 | 44 205 36 1125 38 Thermal 515 | 75 123 12 291 14 Explosive 1180 | . 109 . . 1071 Electromagnetic 174 | 52 25 . 97 . Impact . | . . . . . Slashing . | . . . . . Piercing . | . . . . . Highest Corruption 4 | . . . . 4 Average Corruption 4 | . . . . 4 Corruption Purged . | . . . . . Corruption Blocked . | . . . . . Overload Shots . | . . . . . Overflow Damage 12 | . . . 3 9 Projectiles 3 | . . . 3 . Explosions 9 | . . . . 9 Melee . | . . . . . Knockbacks 5 | . 2 . 3 . Impact 1 | . . . 1 . Kinetic 4 | . 2 . 2 . Secondary . | . . . . . Self-Inflicted Damage 151 | . . . . 151 Shots 4 | . . . . 4 Rammed 2 | . . . 2 . Targets Rammed 2 | . . . 2 . Kicked . | . . . . . Crushed . | . . . . . Highest Temperature 192 | 120 192 48 25 20 Average Temperature 57 | 36 78 26 7 12 Received Heat Transfer 721 | . 207 . 414 100 Siege Activations . | . . . . . Robots Corrupted . | . . . . . Combat Hostiles . | . . . . . Parts Fried . | . . . . . Impact Corruptions . | . . . . . Robots Melted . | . . . . . Combat Hostiles . | . . . . . Parts Melted 1 | . . . 1 . Heat Transferred 1728 | 222 359 37 1073 37 Parts Sabotaged . | . . . . . Parts Stolen . | . . . . . Parts Stripped . | . . . . . Power Chain Reactions 1 | . 1 . . . Alert | -11 -10 -10 -9 -9 ------- Run | Yrd Mat Min Mat Min Peak Influence 281 | 10 138 7 281 115 Initial 86 | . 6 2 2 86 Average 91 | 4 35 6 161 78 Maximum Alert Level 1 | . . . 1 . Low Security (%) 84 | 100 100 100 68 100 Level 1 15 | . . . 31 . Level 2 . | . . . . . Level 3 . | . . . . . Level 4 . | . . . . . Level 5 . | . . . . . High Security . | . . . . . Max Security . | . . . . . Squads Dispatched 7 | . 2 1 4 . Investigation 4 | . 1 . 3 . Extermination . | . . . . . Reinforcement 2 | . 1 . 1 . Assault 1 | . . 1 . . Garrison . | . . . . . Intercept . | . . . . . Searches Triggered . | . . . . . Construction Impeded . | . . . . . Haulers Reinforced . | . . . . . Active Scanning Responses . | . . . . . Cargo Convoy Interrupts . | . . . . . Stealth | -11 -10 -10 -9 -9 --------- Run | Yrd Mat Min Mat Min Distress Signals 3 | . 1 . 2 . Communications Jammed . | . . . . . Distress Signals . | . . . . . Times Spotted 66 | . 12 . 32 22 Peak Tracking Total 20 | . 6 . 5 20 Tactical Retreats 2 | . 1 . 1 . Traps | -11 -10 -10 -9 -9 ------- Run | Yrd Mat Min Mat Min Traps Triggered 2 | . 1 . 1 . Indirectly . | . . . . . Trap Hack Attempts . | . . . . . Triggered . | . . . . . Disarmed . | . . . . . Reprogrammed . | . . . . . Reused . | . . . . . Traps Extracted . | . . . . . Installed . | . . . . . Triggered . | . . . . . Machines | -11 -10 -10 -9 -9 ---------- Run | Yrd Mat Min Mat Min Machines Disabled . | . . . . . Max in Single Turn . | . . . . . Machines Repaired . | . . . . . Machines Dismantled . | . . . . . Machines Sabotaged . | . . . . . Overloaded Fab Kills . | . . . . . Hacking | -11 -10 -10 -9 -9 --------- Run | Yrd Mat Min Mat Min Machines Accessed 10 | . 4 . 6 . Terminals 8 | . 3 . 5 . Fabricators . | . . . . . Repair Stations . | . . . . . Recycling Units 1 | . 1 . . . Scanalyzers 1 | . . . 1 . Garrison Access . | . . . . . Total Hacks 32 | . 11 . 21 . Successful 18 | . 8 . 10 . Failed 14 | . 3 . 11 . Catastrophic 1 | . . . 1 . Database Lockouts . | . . . . . Manual 25 | . 9 . 16 . Terminals 25 | . 9 . 16 . Fabricators . | . . . . . Repair Stations . | . . . . . Recycling Units 2 | . 2 . . . Scanalyzers 5 | . . . 5 . Garrison Access . | . . . . . Terminal Hacks 4 | . 3 . 1 . Terminal Index 2 | . 1 . 1 . Recall Investigation 1 | . 1 . . . Recall Reinforcements 1 | . 1 . . . Fabricator Hacks . | . . . . . Repair Station Hacks . | . . . . . Recycling Unit Hacks 1 | . 1 . . . Report Inventory 1 | . 1 . . . Scanalyzer 4 | . . . 4 . Insert Component 2 | . . . 2 . Analyze 2 | . . . 2 . Garrison Access Hacks . | . . . . . Unauthorized Hacks 9 | . 4 . 5 . Terminals 9 | . 4 . 5 . Track 3 | . 2 . 1 . Botnet 6 | . 2 . 4 . Fabricators . | . . . . . Repair Stations . | . . . . . Recycling Units . | . . . . . Scanalyzers . | . . . . . Garrison Access . | . . . . . Data Cores Recovered . | . . . . . Used . | . . . . . Hacking Detections 9 | . 4 . 5 . Full Trace Events 1 | . . . 1 . Feedback Events . | . . . . . Feedback Blocked . | . . . . . Robot Schematics Acquired . | . . . . . Robots Built . | . . . . . Authchips . | . . . . . Time . | . . . . . Total Robot Build Rating . | . . . . . Part Schematics Acquired 2 | . . . 2 . Parts Built . | . . . . . Authchips . | . . . . . Time . | . . . . . Total Part Build Rating . | . . . . . Parts Repaired . | . . . . . Time . | . . . . . Parts Recycled . | . . . . . Recycled Matter . | . . . . . Retrieved Matter . | . . . . . Retrieved Components . | . . . . . Parts Scanalyzed 2 | . . . 2 . Part Schematics Acquired 2 | . . . 2 . Parts Damaged . | . . . . . Bothacking | -11 -10 -10 -9 -9 ------------ Run | Yrd Mat Min Mat Min Used RIF Installer . | . . . . . Robots Hacked . | . . . . . Non-combat . | . . . . . Combat . | . . . . . Robot Hacks Applied . | . . . . . Relay Couplers Released . | . . . . . Fabnet Peak Effective % . | . . . . . Robots Rewired . | . . . . . Allies Hacked . | . . . . . Hacks Repelled . | . . . . . Allies | -11 -10 -10 -9 -9 -------- Run | Yrd Mat Min Mat Min Total Allies 1 | . . 1 . . Largest Group 1 | . . 1 1 . Highest-Rated Group 31 | . . 31 31 . Highest-Rated Ally 31 | . . 31 31 . Total Orders . | . . . . . Ally Attacks 3 | . . . 3 . Total Damage 42 | . . . 42 . Kills . | . . . . . Allies Corrupted . | . . . . . Allies Melted . | . . . . . Intel | -11 -10 -10 -9 -9 ------- Run | Yrd Mat Min Mat Min Robot Analysis Total . | . . . . . Derelict Logs Recovered . | . . . . . Drone Launches . | . . . . . Drone Recoveries . | . . . . . Exploration | -11 -10 -10 -9 -9 ------------- Run | Yrd Mat Min Mat Min Turns Passed 2064 | 158 672 195 993 46 Spaces Moved 1364 | 120 471 210 556 7 Core 5 | 5 . . . . Treads 581 | . 229 12 336 4 Legs . | . . . . . Wheels 778 | 115 242 198 220 3 Hover . | . . . . . Flight . | . . . . . Fastest Speed 50 | 50 80 80 80 95 Average Speed 114 | 78 118 84 128 132 Slowest Speed 160 | 80 160 160 160 160 Overloaded Moves . | . . . . . Propulsion Burnouts . | . . . . . Robots Hopped . | . . . . . Cave-ins Triggered . | . . . . . Exploration Rate (%) 28 | 5 53 32 45 7 Regions Visited 4 Branch Regions 2 Pre-discovered Areas . | . . . . . Known Exits Taken . | . . . . . Unknown Exits Taken 4 | 1 1 1 1 . Scrap Searched . | . . . . . Spaces Dug . | . . . . . Terrain Destroyed 64 | . 12 . . 52 Melee . | . . . . . Projectile . | . . . . . AOE 64 | . 12 . . 52 Terrain Rammed . | . . . . . Walls Destroyed . | . . . . . Machines Disabled . | . . . . . Actions | -11 -10 -10 -9 -9 --------- Run | Yrd Mat Min Mat Min Total 1660 | 160 540 224 708 28 Wait 68 | 11 27 4 26 . Move 1360 | 119 470 209 555 7 Hop . | . . . . . Pick Up 38 | 8 8 3 19 . Fast Attach 7 | 5 . . 2 . Attach 23 | 2 4 . 9 8 Detach . | . . . . . Swap 26 | 4 6 3 10 3 Drop 20 | 1 1 3 15 . Fire 116 | 10 24 2 70 10 Melee . | . . . . . Ram . | . . . . . Kick . | . . . . . Crush 2 | . . . 2 . Escape Stasis . | . . . . . Rewire . | . . . . . Trap . | . . . . . Miscellaneous . | . . . . . Route ------- -11/Scrapyard -10/Materials (discovered 2 exits: [*Min x2]) -10/Mines -9/Materials (discovered 2 exits: [*Mat] / [*Min]) -9/Mines History --------- Turn | Location | Event 4 | -11/Scrapyard | Discovered new exit (range 16) 159 | -11/Scrapyard | Entered Materials 312 | -10/Materials | Build established: Mutant 442 | -10/Materials | Lost 4 parts (1p2n1w) 593 | -10/Materials | Discovered new exit (range 15) 770 | -10/Materials | Discovered new exit (range 7) 831 | -10/Materials | Entered Mines 833 | -10/Mines | Met a Derelict bent on vengeance 923 | -10/Mines | Met a Derelict testing a Signal Generator 977 | -10/Mines | Discovered new exit (range 12) 1026 | -10/Mines | Entered Materials 1026 | -9/Materials | Accompanied by 1 ally 1026 | -9/Materials | Evolved 2 slots: Propulsion x1, Utility x1 1478 | -9/Materials | Lost 3 parts (1u2w) 1568 | -9/Materials | Discovered new exit (range 15) 1797 | -9/Materials | Discovered new exit (range 10) 2019 | -9/Materials | Entered Mines 2020 | -9/Mines | Assembled infested the area 2024 | -9/Mines | Core integrity fell below 50% 2057 | -9/Mines | Core integrity fell below 20% 2060 | -9/Mines | Destroyed 16 combat bots 2065 | -9/Mines | Destroyed by D-53 Grenadier with Mini Grenade Launcher Last Messages --------------- 02039_ as-21142 destroyed. 02040_ The unstable cave ceiling collapses. 02040_ as-90328 destroyed. 02042_ as-53033 destroyed. 02046_ as-81321 destroyed. 02046_ Imp. Ion Engine destroyed. 02048_ Lrg. Matter Pod destroyed. 02048_ Lgt. Treads destroyed. 02048_ Imp. Heat Sink destroyed. 02050_ Imp. Assault Rifle destroyed. 02052_ The unstable cave ceiling collapses. 02054_ Beam Rifle destroyed. 02054_ Lgt. Treads destroyed. 02055_ The unstable cave ceiling collapses. 02056_ Wheel destroyed. 02057_ The unstable cave ceiling collapses. 02061_ Imp. Ion Engine destroyed. 02063_ The unstable cave ceiling collapses. 02063_ Rocket Launcher destroyed. 02065_ Imp. Assault Rifle destroyed. Map ----- +----------------------------------------------------+ | | | | | | | | | | | | | | | | | | | | | | | | | | | | | | | | | ?????????????????????????????????? | | ?????????????????????########????? | | ?????????????###???### #????? | | ????????? # # ### #????? | | ???????? # #????? | | ??????? ##???? | | ???????# ##??? | | ???????# d d #??? | | ???????# #??? | | ???????? @ #?? | | ????????" # #?? | | ????????? ??????# #?? | | ???????????????????# ##?? | | ???????????????????## # #??? | | ???????????????????# ### ###??? | | ???????????????????# ???#####????? | | ???????????????????#?????????????? | | ?????????????????????????????????? | | ?????????????????????????????????? | | ?????????????????????????????????? | | ?????????????????????????????????? | | ?????????????????????????????????? | | ?????????????????????????????????? | | ?????????????????????????????????? | | ?????????????????????????????????? | | ?????????????????????????????????? | | ?????????????????????????????????? | | ?????????????????????????????????? | | ?????????????????????????????????? | | ?????????????????????????????????? | | ?????????????????????????????????? | | ?????????????????????????????????? | | ?????????????????????????????????? | | ?????????????????????????????????? | +----------------------------------------------------+ Best States ------------- Heat Dissipation 42 Coolant Potential 50 Energy Generation 14 Energy Capacity 280 Matter Stores 450 Matter Capacity 450 Sight Range 16 Terrain Scan Density 10 Evasion (%) 44 Recoil Reduction 3 Item Schematics ----------------- Hvy. Assault Rifle | -9/Materials | Scanalyzed Hvy. Ion Engine | -9/Materials | Scanalyzed Robot Schematics ------------------ None Fabricated ------------ Nothing Alien Tech Used ----------------- None Achievements -------------- Exterminator Hunted Challenges ------------ None Game ------ Seed BiocellNeutronBoregun Manual? 0 Play Time 00:34:46 Cumulative 17.6 hours Start 2025.03.17 @ 17:22:23 End 2025.03.17 @ 17:55:34 Sessions 1 Manual Loads 0 Difficulty Rogue Special Mode None Game No. 25 Rogue 25 Adventurer 0 Explorer 0 Win Type - Total 0 Types 0/0/0/0/0/0/0/0/0 Lore% 5 Gallery% 22 Achievement% 20 Wizard Run 0 Options --------- Layout 0 ASCII 0 Keyboard 0 Movement Numpad Keybinds 0 Fullscreen 1 Font 24/Smallcaps Map View 76x50 Zoom Use 0% Tactical HUD 1 Map Filters NONE Filters NONE Steam 1 RUN: 0eaf6feb-7cab-4f3d-bd65-21825ef791f9